Cogmind - Beta 14 @@@ ROGUE MODE // 2025.03.28 @ 23:34:26 Player: mix Result: Destroyed by G-34 Mercenary with Small Laser Performance ------------- Evolutions (0) 0 Regions Visited (1) 200 Robots Destroyed (11) 55 Value Destroyed (286) 286 Prototype IDs (0) 0 Alien Tech Used (0) 0 Bonus (0) 0 TOTAL SCORE: 541 Bonus ------- None Cogmind --------- Core Integrity 0/250 Matter 267/300 Energy 99/100 System Corruption 0% Temperature Cool (6) Movement Rolling (100) Location -10/Materials Parts ------- > --- POWER (1) -------- (None) > --- PROPULSION (2) --- Compact Wheel > --- UTILITY (2) ------ Small Storage Unit > --- WEAPON (2) ------- Particle Gun Light Assault Rifle > --- INVENTORY (8) ---- Heat Sink Structural Scanner Signal Interpreter Peak State ------------ > --- POWER ------------ Ion Engine > --- PROPULSION ------- Light Treads Light Treads > --- UTILITY ---------- Heat Sink Small Storage Unit > --- WEAPON ----------- EM Pulse Gun Small Laser > --- INVENTORY -------- Compact Wheel [Rating: 7] Favorites ----------- Power Ion Engine Engine Ion Engine Propulsion Light Treads Treads Light Treads Wheel Compact Wheel Utility Small Storage Unit Device Heat Sink Storage Small Storage Unit Weapon Small Laser Energy Gun Small Laser Ballistic Gun Light Assault Rifle Build | -11 -10 ------- Run | Yrd Mat Slots Evolved . | . . Power . | . . Propulsion . | . . Utility . | . . Weapon . | . . Parts Attached 12 | 6 6 Power 2 | 1 1 Engine 2 | 1 1 Core . | . . Reactor . | . . Propulsion 3 | 2 1 Treads 2 | 2 . Leg . | . . Wheel 1 | . 1 Hover . | . . Flight . | . . Utility 2 | 1 1 Device 1 | . 1 Storage 1 | 1 . Processor . | . . Hackware . | . . Protection . | . . Artifact . | . . Weapon 5 | 2 3 Energy Gun 4 | 2 2 Energy Cannon . | . . Ballistic Gun 1 | . 1 Ballistic Cannon . | . . Launcher . | . . Special Weapon . | . . Impact Weapon . | . . Slashing Weapon . | . . Piercing Weapon . | . . Special Melee Weapon . | . . Unidentified Prototypes . | . . Parts Lost 7 | . 7 Power 1 | . 1 Propulsion 2 | . 2 Utility 1 | . 1 Weapon 3 | . 3 Highest Loss Streak 7 | . 7 To Critical Strikes . | . . Average Slot Usage (%) 80 | . 80 Engine 10 | . 10 Treads 23 | . 23 Wheel 2 | . 2 Device 6 | . 6 Storage 14 | . 14 Energy Gun 22 | . 22 Peak Build Rating 7 | 6 7 Average Rating 5 | 4 5 On Entrance 3 | . 6 Naked Turns . | . . Heaviest Build 14 | 13 14 Greatest Support 40 | 40 40 Greatest Overweight (x) 2 | 2 . Average Overweight (x) . | . . Largest Inventory Capacity 8 | 8 8 Average Capacity 7 | 6 8 Most Carried 4 | 3 4 Average Carried 1 | . 1 Final Capacity 8 | 8 8 Final Carried 3 | . 3 Class Distribution -------------------- 100% | Mutant Dominant Class ---------------- Mutant | -10/Materials Resources | -11 -10 ----------- Run | Yrd Mat Matter Collected 280 | 207 73 Remotely . | . . Salvage Created 388 | . 388 Parts 27 | . 27 Haulers Intercepted . | . . Recyclers Shooed . | . . Parts Field Recycled . | . . Retrieved Matter . | . . Parts Self-Destructed . | . . Prevented . | . . Kills | -11 -10 ------- Run | Yrd Mat Combat Hostiles Destroyed 10 | . 10 Guns 10 | . 10 Classes Destroyed 3 | . 3 Builder 1 | . 1 Swarmer 3 | . 3 Grunt 7 | . 7 Best Kill Streak 3 | . 3 Combat Bots Only 3 | . 3 Max Kills in Single Turn 1 | . 1 Gunslinging . | . . Exploded . | . . Melee . | . . Uniques/NPCs Destroyed . | . . Combat | -11 -10 -------- Run | Yrd Mat Hostile Shots Fired 93 | . 93 Missed 24 | . 24 Damage Taken 888 | . 888 Core 253 | . 253 Absorbed by Shields . | . . Core Remaining (%) 100 | 100 . Volleys Fired 44 | . 44 Largest 2 | . 2 Hottest 80 | . 80 Shots Fired 79 | . 79 Gun 79 | . 79 Cannon . | . . Launcher . | . . Special . | . . Kinetic 3 | . 3 Thermal 48 | . 48 Explosive . | . . Electromagnetic 28 | . 28 Robot Hit Streak 13 | . 13 Robot Miss Streak 6 | . 6 Penetration Max . | . . Secondary Targets 3 | . 3 Max Gunslinging Chain 1 | . 1 Shots Hit Robots 51 | . 51 Core Hits 18 | . 18 Critical Kills . | . . Critical Parts Destroyed . | . . Critical Strikes . | . . Melee Attacks . | . . Impact . | . . Slashing . | . . Piercing . | . . Sneak Attacks . | . . Combat Hostiles . | . . Follow-up Attacks . | . . Damage Inflicted 661 | . 661 Guns 614 | . 614 Cannons . | . . Explosions 47 | . 47 Melee . | . . Ramming . | . . Kinetic 27 | . 27 Thermal 300 | . 300 Explosive . | . . Electromagnetic 334 | . 334 Impact . | . . Slashing . | . . Piercing . | . . Highest Corruption . | . . Average Corruption . | . . Corruption Purged . | . . Corruption Blocked . | . . Overload Shots . | . . Overflow Damage 15 | . 15 Projectiles . | . . Explosions 15 | . 15 Melee . | . . Knockbacks . | . . Impact . | . . Kinetic . | . . Secondary . | . . Self-Inflicted Damage 48 | . 48 Shots 1 | . 1 Rammed . | . . Targets Rammed . | . . Kicked . | . . Crushed . | . . Highest Temperature 294 | . 294 Average Temperature 92 | . 92 Received Heat Transfer 477 | . 477 Siege Activations . | . . Robots Corrupted . | . . Combat Hostiles . | . . Parts Fried 1 | . 1 Impact Corruptions . | . . Robots Melted . | . . Combat Hostiles . | . . Parts Melted 1 | . 1 Heat Transferred 625 | . 625 Parts Sabotaged . | . . Parts Stolen . | . . Parts Stripped . | . . Power Chain Reactions 1 | . 1 Alert | -11 -10 ------- Run | Yrd Mat Peak Influence 262 | . 262 Initial . | . . Average 107 | . 126 Maximum Alert Level 1 | . 1 Low Security (%) 71 | 100 66 Level 1 28 | . 33 Level 2 . | . . Level 3 . | . . Level 4 . | . . Level 5 . | . . High Security . | . . Max Security . | . . Squads Dispatched 2 | . 2 Investigation 2 | . 2 Extermination . | . . Reinforcement . | . . Assault . | . . Garrison . | . . Intercept . | . . Searches Triggered . | . . Construction Impeded . | . . Haulers Reinforced . | . . Active Scanning Responses . | . . Cargo Convoy Interrupts . | . . Stealth | -11 -10 --------- Run | Yrd Mat Distress Signals 2 | . 2 Communications Jammed . | . . Distress Signals . | . . Times Spotted 19 | . 19 Peak Tracking Total 5 | . 5 Tactical Retreats 2 | . 2 Traps | -11 -10 ------- Run | Yrd Mat Traps Triggered 2 | . 2 Indirectly . | . . Trap Hack Attempts . | . . Triggered . | . . Disarmed . | . . Reprogrammed . | . . Reused . | . . Traps Extracted . | . . Installed . | . . Triggered . | . . Machines | -11 -10 ---------- Run | Yrd Mat Machines Disabled . | . . Max in Single Turn . | . . Machines Repaired . | . . Machines Dismantled . | . . Machines Sabotaged . | . . Overloaded Fab Kills . | . . Hacking | -11 -10 --------- Run | Yrd Mat Machines Accessed . | . . Terminals . | . . Fabricators . | . . Repair Stations . | . . Recycling Units . | . . Scanalyzers . | . . Garrison Access . | . . Total Hacks . | . . Successful . | . . Failed . | . . Catastrophic . | . . Database Lockouts . | . . Manual . | . . Terminals . | . . Fabricators . | . . Repair Stations . | . . Recycling Units . | . . Scanalyzers . | . . Garrison Access . | . . Terminal Hacks . | . . Fabricator Hacks . | . . Repair Station Hacks . | . . Recycling Unit Hacks . | . . Scanalyzer . | . . Garrison Access Hacks . | . . Unauthorized Hacks . | . . Terminals . | . . Fabricators . | . . Repair Stations . | . . Recycling Units . | . . Scanalyzers . | . . Garrison Access . | . . Data Cores Recovered . | . . Used . | . . Hacking Detections . | . . Full Trace Events . | . . Feedback Events . | . . Feedback Blocked . | . . Robot Schematics Acquired . | . . Robots Built . | . . Authchips . | . . Time . | . . Total Robot Build Rating . | . . Part Schematics Acquired . | . . Parts Built . | . . Authchips . | . . Time . | . . Total Part Build Rating . | . . Parts Repaired . | . . Time . | . . Parts Recycled . | . . Recycled Matter . | . . Retrieved Matter . | . . Retrieved Components . | . . Parts Scanalyzed . | . . Part Schematics Acquired . | . . Parts Damaged . | . . Bothacking | -11 -10 ------------ Run | Yrd Mat Used RIF Installer . | . . Robots Hacked . | . . Non-combat . | . . Combat . | . . Robot Hacks Applied . | . . Relay Couplers Released . | . . Fabnet Peak Effective % . | . . Robots Rewired . | . . Allies Hacked . | . . Hacks Repelled . | . . Allies | -11 -10 -------- Run | Yrd Mat Total Allies . | . . Largest Group . | . . Highest-Rated Group . | . . Highest-Rated Ally . | . . Total Orders . | . . Ally Attacks . | . . Total Damage . | . . Kills . | . . Allies Corrupted . | . . Allies Melted . | . . Intel | -11 -10 ------- Run | Yrd Mat Robot Analysis Total . | . . Derelict Logs Recovered . | . . Drone Launches . | . . Drone Recoveries . | . . Exploration | -11 -10 ------------- Run | Yrd Mat Turns Passed 405 | 61 344 Spaces Moved 173 | 35 138 Core 14 | 14 . Treads 119 | 21 98 Legs . | . . Wheels 40 | . 40 Hover . | . . Flight . | . . Fastest Speed 50 | 50 100 Average Speed 143 | 144 142 Slowest Speed 160 | 160 160 Overloaded Moves . | . . Propulsion Burnouts . | . . Robots Hopped . | . . Cave-ins Triggered . | . . Exploration Rate (%) 18 | 3 33 Regions Visited 1 Branch Regions . Pre-discovered Areas . | . . Known Exits Taken . | . . Unknown Exits Taken 1 | 1 . Scrap Searched . | . . Spaces Dug . | . . Terrain Destroyed 6 | . 6 Melee . | . . Projectile . | . . AOE 6 | . 6 Terrain Rammed . | . . Walls Destroyed . | . . Machines Disabled . | . . Actions | -11 -10 --------- Run | Yrd Mat Total 253 | 46 207 Wait 9 | . 9 Move 172 | 34 138 Hop . | . . Pick Up 15 | 6 9 Fast Attach . | . . Attach 11 | 6 5 Detach . | . . Swap 1 | . 1 Drop 1 | . 1 Fire 44 | . 44 Melee . | . . Ram . | . . Kick . | . . Crush . | . . Escape Stasis . | . . Rewire . | . . Trap . | . . Miscellaneous . | . . Route ------- -11/Scrapyard -10/Materials (discovered 1 exit: [*Min]) History --------- Turn | Location | Event 22 | -11/Scrapyard | Discovered new exit (range 16) 62 | -11/Scrapyard | Entered Materials 278 | -10/Materials | Discovered new exit (range 6) 315 | -10/Materials | Build established: Mutant 335 | -10/Materials | Core integrity fell below 50% 354 | -10/Materials | Core integrity fell below 20% 382 | -10/Materials | Lost 7 parts (1p2n1u3w) 406 | -10/Materials | Destroyed by G-34 Mercenary with Small Laser Last Messages --------------- Acquired Sml. Laser. U-05 Engineer lays Concrete. U-05 Engineer builds a Wall. U-05 Engineer destroyed. Lgt. Treads destroyed. Sml. Laser destroyed. Lgt. Treads destroyed. Sml. Laser destroyed. Acquired Structural Scanner. Acquired Heat Sink. R-06 Scavenger collects Lgt. Assault Rifle. Triggered Alarm Trap. An alarm sounds. ALERT: Alarm triggered, dispatching investigation squad. Critical hit (Burn: +37). Acquired Lgt. Assault Rifle. G-47 Trooper destroyed. Acquired Particle Gun. U-05 Engineer lays Concrete. Map ----- +----------------------------------------------------+ | | | ???????????######???########????????????????? | | ??????????? #?# ?????????????????? | | ??????????? #?# """"""?????????????????? | | ???????? """ ### """"""" #??????????????? | | ????????""""" # + """"""" #?#####????????? | | ????????""""" # #*""""""" ###"""##???????? | | ????????""""" # #%""""""" ##"|||"##??????? | | ??????????"" # #[ #"" ""#??????? | | ???????????? # # *= # #??????? | | ???????????###+### ####+####""* < #??????? | | ?#####?????# %% %== #??????? | | ?# #?????# "%[! #??????? | | ?# #?????#!! """ """ "## *= ##??????? | | ?# #?????# """ """ ####% !##???????? | | ?# #?????# """ """ ####*%=#????????? | | ?# #?????# +????????? | | ?# #?????# #????????? | | ?# #?????# #????????? | | ?# #?????## ######+#### #????????? | | ?# #??????# #?# =# #????????? | | ?# #??????# #?# # #????????? | | ?# #??????# #?# # #????????? | | ?# #??????# #?# # #????????? | | ?# #??????# #?# % # #????????? | | ## ##?????# #?#####@### #????????? | | # ####### #????# = #????????? | | # % #????# g ##+#????????? | | # #????# #? ?????????? | | # #????# #???????????? | | # #######% #????# #???????????? | | #######?????# ##????# #???????????? | | ????????????# #?????# !! #???????????? | | ????????????# #?????# ! +???????????? | | ??????????? #?????## #???????????? | | ?????????? #??????# #???????????? | | ????????? +??????# ! #???????????? | | ??????? # ?????# !! #???????????? | | ??????####+### ### ?????# #???????????? | | ????????? ??# #??? ????# #???????????? | | ????????""???# #??? ???##### #???????????? | | ??????? "T???? #????????????? #???????????? | | ??????? ?????? ?????????????? #???????????? | | ?????????????? ?????????????? +???????????? | | ?????????????? ?????????????? #???????????? | | ?????????????? ?????????????? #???????????? | | ?????????????? ?????????????? #???????????? | | ?????????????? ?????????????? #???????????? | | ?????????????????????????????? #???????????? | | ?????????????????????????????? #???????????? | +----------------------------------------------------+ Best States ------------- Heat Dissipation 35 Energy Generation 10 Energy Capacity 250 Matter Stores 300 Matter Capacity 300 Sight Range 16 Terrain Scan Density 10 Evasion (%) 40 Recoil Reduction 2 Item Schematics ----------------- None Robot Schematics ------------------ None Fabricated ------------ Nothing Alien Tech Used ----------------- None Achievements -------------- None Challenges ------------ None Game ------ Seed AntigravTrackerSource Manual? 0 Play Time 00:06:18 Cumulative 72.4 hours Start 2025.03.28 @ 23:11:57 End 2025.03.28 @ 23:34:26 Sessions 1 Manual Loads 0 Difficulty Rogue Special Mode None Game No. 108 Rogue 94 Adventurer 14 Explorer 0 Win Type - Total 0 Types 0/0/0/0/0/0/0/0/0 Lore% 34 Gallery% 45 Achievement% 41 Wizard Run 0 Options --------- Layout 1 ASCII 0 Keyboard 0 Movement Mouse Keybinds 0 Fullscreen 1 Font 24/Smallcaps Map View 50x35 Zoom Use 6% Tactical HUD 0 Map Filters NONE Filters NONE Steam 1 RUN: 34280450-8297-45d6-81f5-54ce3c2ae99c